bitfinex/quotes_BTCUSD_20220306
["timestamp","ask_amount","ask_price","bid_price","bid_amount"]
[1646560157017,0.39530571,38905.0,38896.0,0.18131429]
[1646560157215,0.00020788,38901.0,38896.0,0.18131429]
[1646560158268,0.39530571,38905.0,38896.0,0.18131429]
[1646560158472,0.00020788,38901.0,38896.0,0.18131429]
[1646560159473,0.39530571,38905.0,38896.0,0.18131429]
[1646560159673,0.00020788,38901.0,38896.0,0.18131429]
[1646560160670,0.31927894,38904.0,38896.0,0.18131429]
[1646560160871,0.00020736,38901.0,38896.0,0.18131429]
[1646560161871,0.39530571,38905.0,38896.0,0.18131429]
[1646560162113,0.00020736,38901.0,38896.0,0.18131429]
[1646560162913,0.38551307,38905.0,38896.0,0.18131429]
[1646560164017,0.31927894,38904.0,38896.0,0.18131429]
[1646560164516,0.00020748,38903.0,38896.0,0.18131429]
[1646560165517,0.38551307,38905.0,38896.0,0.18131429]
[1646560165760,0.00020747,38903.0,38896.0,0.18131429]
[1646560166665,0.38551307,38905.0,38896.0,0.18131429]
[1646560166862,0.00020747,38903.0,38896.0,0.18131429]
[1646560167063,0.37572054,38905.0,38896.0,0.18131429]
[1646560168065,0.37572054,38905.0,38894.0,0.20718814]
[1646560168465,0.69499948,38905.0,38894.0,0.20718814]
[1646560169063,0.16697853,38903.0,38894.0,0.25472811]
[1646560169263,0.05,38903.0,38894.0,0.25472811]
[1646560169918,0.128673,38902.0,38894.0,0.25472811]
[1646560170117,0.123673,38902.0,38894.0,0.25472811]
[1646560171321,0.064335,38901.0,38894.0,0.25472811]
[1646560171720,0.064335,38901.0,38896.0,0.00021554]
[1646560172724,0.064335,38901.0,38894.0,0.25472811]
[1646560172926,0.064336,38899.0,38897.0,0.00021554]
[1646560173784,0.064336,38899.0,38889.0,0.738]
[1646560173983,0.064336,38899.0,38896.0,0.00021554]
[1646560174984,0.22273066,38899.0,38889.0,0.738]
[1646560175185,0.22273066,38899.0,38896.0,0.00021555]
[1646560175385,0.27273066,38899.0,38896.0,0.00021555]
[1646560175987,0.47903161,38899.0,38896.0,0.00021555]
[1646560176286,0.27273066,38899.0,38890.0,0.17677833]
[1646560176485,0.59174786,38899.0,38896.0,0.00020207]
[1646560176687,0.27273066,38899.0,38896.0,0.00020207]
[1646560177514,0.27273066,38899.0,38890.0,0.17677833]
[1646560177717,0.59174786,38899.0,38896.0,0.00020207]
[1646560177914,0.27273066,38899.0,38896.0,0.00020207]
[1646560178615,0.27273066,38899.0,38890.0,0.17677833]
[1646560178815,0.27273066,38899.0,38896.0,0.00020207]
[1646560179914,0.27273066,38899.0,38890.0,0.32899022]
[1646560180114,0.27273066,38899.0,38896.0,0.0001726]
[1646560180514,0.114336,38899.0,38896.0,0.0001726]
[1646560180772,0.05,38899.0,38896.0,0.0001726]
[1646560180974,0.47103484,38903.0,38890.0,0.32899022]
[1646560181175,0.3690172,38903.0,38896.0,0.0001726]
[1646560181375,0.3690172,38903.0,38896.0,0.2145475]
[1646560181376,0.05,38903.0,38896.0,0.2145475]
[1646560181578,0.344541,38904.0,38896.0,0.2145475]
[1646560181777,0.117241,38904.0,38897.0,0.15515887]
[1646560181978,0.4362582,38904.0,38897.0,0.15515887]
[1646560182175,0.064333,38903.0,38897.0,0.15515887]
[1646560182375,0.3190172,38902.0,38897.0,0.15533147]
[1646560182575,0.3190172,38902.0,38897.0,0.0001726]
[1646560183377,0.3190172,38902.0,38893.0,0.20480298]
[1646560183581,0.3190172,38902.0,38897.0,0.0001767]
[1646560183976,0.114333,38903.0,38897.0,0.0001767]
[1646560184382,0.17866872,38903.0,38897.0,0.0001767]
[1646560184619,0.33254074,38903.0,38894.0,0.15962729]
[1646560184819,0.3190172,38902.0,38897.0,0.0001767]
[1646560185020,0.33254074,38903.0,38897.0,0.0001767]
[1646560185821,0.3190172,38902.0,38894.0,0.15962729]
[1646560186023,0.21389642,38900.0,38897.0,0.0001767]
[1646560186221,0.26389642,38900.0,38897.0,0.0001767]
[1646560186422,0.05,38900.0,38897.0,0.0001767]
[1646560186823,0.05,38902.0,38897.0,0.0001767]
[1646560187127,0.12866872,38903.0,38893.0,0.17378102]
[1646560187128,0.05,38903.0,38893.0,0.17378102]
[1646560187322,0.05,38903.0,38897.0,0.00017578]
[1646560187522,0.114329,38904.0,38897.0,0.00017578]
[1646560187722,0.25291268,38904.0,38897.0,0.00017578]
[1646560188374,0.1870817,38900.0,38897.0,0.00017578]
[1646560188570,0.2370817,38900.0,38897.0,0.00017578]
[1646560189373,0.2370817,38900.0,38896.0,0.16673056]
[1646560189573,0.2370817,38900.0,38897.0,0.00017578]
[1646560190575,0.2370817,38900.0,38896.0,0.16673056]
[1646560192119,0.2370817,38900.0,38896.0,0.16678678]
[1646560193024,0.2370817,38900.0,38896.0,0.16661079]
[1646560193220,0.2370817,38900.0,38896.0,0.16678678]
[1646560194323,0.2370817,38900.0,38896.0,0.16661079]
[1646560194522,0.2370817,38900.0,38896.0,0.1668007]
[1646560195524,0.2370817,38900.0,38896.0,0.16661079]
[1646560195779,0.2370817,38900.0,38896.0,0.1668007]
[1646560196580,0.2370817,38900.0,38896.0,0.16661079]
[1646560196782,0.2370817,38900.0,38896.0,0.1668007]
[1646560196981,0.2370817,38900.0,38896.0,0.00018991]
[1646560197182,0.23646039,38900.0,38896.0,0.00018991]
[1646560197783,0.23646039,38900.0,38893.0,0.17378102]
[1646560197983,0.23646039,38900.0,38896.0,0.00017281]
[1646560198983,0.23646039,38900.0,38895.0,0.16739348]
[1646560199184,0.23646039,38900.0,38896.0,0.00017281]
[1646560200226,0.23646039,38900.0,38895.0,0.16739348]
[1646560200421,0.23646039,38900.0,38896.0,0.00017281]
[1646560201518,0.23646039,38900.0,38895.0,0.16739348]
[1646560201725,0.23646039,38900.0,38896.0,0.00017666]
[1646560202722,0.23646039,38900.0,38895.0,0.33552279]
[1646560202921,0.23646039,38900.0,38896.0,0.00017666]
[1646560203768,0.23646039,38900.0,38895.0,0.33552279]
[1646560203969,0.23646039,38900.0,38896.0,0.00017666]
[1646560204969,0.23646039,38900.0,38895.0,0.33552279]
[1646560205272,0.23646039,38900.0,38896.0,0.00017579]
[1646560206168,0.23646039,38900.0,38895.0,0.16739348]
[1646560206368,0.23646039,38900.0,38896.0,0.00017579]
[1646560207420,0.23646039,38900.0,38895.0,0.16739348]
[1646560207615,0.23646039,38900.0,38896.0,0.00017579]
[1646560208719,0.23646039,38900.0,38895.0,0.16739348]
[1646560208918,0.23646039,38900.0,38896.0,0.00017599]
[1646560209919,0.23646039,38900.0,38895.0,0.16739348]
[1646560210119,0.23646039,38900.0,38896.0,0.00017599]
[1646560210967,0.23646039,38900.0,38895.0,0.16739348]
[1646560211166,0.23646039,38900.0,38896.0,0.00017599]
[1646560212267,0.23646039,38900.0,38895.0,0.16739348]
[1646560212469,0.23646039,38900.0,38896.0,0.00017595]
[1646560213368,0.23646039,38900.0,38895.0,0.16739348]
[1646560213569,0.23646039,38900.0,38896.0,0.00017595]
[1646560214715,0.23646039,38900.0,38895.0,0.16739348]
[1646560214915,0.23646039,38900.0,38896.0,0.00017595]
[1646560215815,0.23646039,38900.0,38895.0,0.16739348]
[1646560216016,0.23646039,38900.0,38896.0,0.00017596]
[1646560217117,0.23646039,38900.0,38895.0,0.16739348]
[1646560217317,0.23646039,38900.0,38896.0,0.00017596]
[1646560218366,0.23646039,38900.0,38895.0,0.16739348]
[1646560218665,0.23646039,38900.0,38896.0,0.00017596]
[1646560219466,0.23646039,38900.0,38895.0,0.16739348]
[1646560219667,0.23646039,38900.0,38896.0,0.00017595]
[1646560220773,0.23646039,38900.0,38892.0,0.2434]
[1646560220970,0.23646039,38900.0,38896.0,0.00017595]
[1646560222017,0.40168604,38900.0,38896.0,0.00017595]
[1646560223019,0.40168604,38900.0,38893.0,0.20779453]
[1646560223221,0.40168604,38900.0,38896.0,0.00017595]
[1646560224222,0.40168604,38900.0,38892.0,0.42129154]
[1646560224423,0.40168604,38900.0,38896.0,0.00017595]
[1646560225427,0.12026826,38897.0,38886.0,0.60355]
[1646560225783,0.38226766,38896.0,38886.0,0.5907]
[1646560225982,1.23239965,38896.0,38891.0,0.26970725]
[1646560226278,0.38399894,38895.0,38891.0,0.26970725]
[1646560226478,0.15969719,38894.0,38891.0,0.26970725]
[1646560226680,0.17169695,38891.0,38886.0,0.5907]
[1646560226880,0.12872034,38893.0,38891.0,0.00017598]
[1646560227479,0.20969719,38894.0,38891.0,0.00017598]
[1646560227679,0.14,38892.0,38891.0,0.00017598]
[1646560227879,0.32127852,38892.0,38882.0,0.245]
[1646560228079,0.32127852,38892.0,38883.0,0.16639854]
[1646560228080,0.064352,38889.0,38883.0,0.16639854]
[1646560228279,0.20047538,38888.0,38883.0,0.16639854]
[1646560228482,0.20047538,38888.0,38882.0,0.245]
[1646560228680,0.32919638,38888.0,38879.0,0.20684029]
[1646560229379,0.32919638,38888.0,38882.0,0.00017602]
[1646560230217,0.32919638,38888.0,38881.0,0.15702065]
[1646560230417,0.32919638,38888.0,38883.0,0.00017645]
[1646560230619,0.26483338,38888.0,38883.0,0.00017645]
[1646560231418,0.26483338,38888.0,38879.0,0.20684029]
[1646560231620,0.26483338,38888.0,38884.0,0.00017645]
[1646560232618,0.26483338,38888.0,38880.0,0.15750016]
[1646560232819,0.5861119,38888.0,38884.0,0.00017645]
[1646560233019,0.26483338,38888.0,38884.0,0.00017645]
[1646560233973,0.26483338,38888.0,38879.0,0.20684029]
[1646560234172,0.26483338,38888.0,38884.0,0.00017591]
[1646560235074,0.26483338,38888.0,38879.0,0.36914408]
[1646560235273,0.26483338,38888.0,38884.0,0.00017591]
[1646560235673,0.5861119,38888.0,38884.0,0.00017591]
[1646560235876,0.05646699,38885.0,38884.0,0.00017591]
[1646560236073,0.05143,38886.0,38884.0,0.00017591]
[1646560236278,0.05143,38886.0,38875.0,1.5476]
[1646560236473,0.06436,38885.0,38883.0,0.00017592]
[1646560237325,0.1362258,38885.0,38883.0,0.00017592]
[1646560237525,0.1362258,38885.0,38876.0,0.37648626]
[1646560237726,0.1362258,38885.0,38882.0,0.00017604]
[1646560238327,0.06436,38885.0,38882.0,0.00017604]
[1646560238728,0.06436,38885.0,38876.0,0.37648626]
[1646560238932,0.06436,38885.0,38882.0,0.00017604]
[1646560239330,0.05455923,38883.0,38882.0,0.00017604]
[1646560239531,0.12273923,38883.0,38882.0,0.00017604]
[1646560239735,0.44401775,38883.0,38882.0,0.00017604]
[1646560239935,0.44401775,38883.0,38875.0,0.7822]
[1646560240132,0.064373,38881.0,38875.0,0.7822]
[1646560240330,0.27491048,38879.0,38875.0,0.7822]
[1646560240530,0.19871364,38876.0,38870.0,0.003]
[1646560241371,0.19871364,38876.0,38871.0,0.00017606]
[1646560242175,0.26308864,38876.0,38871.0,0.00017606]
[1646560242376,0.26308864,38876.0,38870.0,0.003]
[1646560242575,0.26308864,38876.0,38872.0,0.00017606]
[1646560242778,0.30018363,38875.0,38872.0,0.00017606]
[1646560243578,0.30018363,38875.0,38871.0,0.21460362]
[1646560243778,0.30018363,38875.0,38872.0,0.00017606]
[1646560244517,0.46497673,38875.0,38872.0,0.00017606]
[1646560244725,0.46497673,38875.0,38870.0,0.003]
[1646560244923,0.32127852,38874.0,38872.0,0.00017607]
[1646560245124,0.29821349,38873.0,38872.0,0.00017607]
[1646560245523,0.61949201,38873.0,38872.0,0.00017607]
[1646560245925,0.68387501,38873.0,38870.0,0.003]
[1646560246122,0.68387501,38873.0,38871.0,0.00017607]
[1646560246927,0.36259649,38873.0,38871.0,0.00017607]
[1646560247222,0.36259649,38873.0,38870.0,0.003]
[1646560248027,0.064381,38872.0,38870.0,0.003]
[1646560248276,0.2918117,38871.0,38870.0,0.003]
[1646560248477,0.61309022,38871.0,38870.0,0.003]
[1646560248676,0.71309022,38871.0,38870.0,0.003]
[1646560249678,0.5318117,38871.0,38870.0,0.003]
[1646560249879,0.3918117,38871.0,38870.0,0.003]
[1646560250079,0.59349504,38871.0,38870.0,0.003]
[1646560250280,0.91477356,38871.0,38870.0,0.003]
[1646560250782,0.91477356,38871.0,38870.0,0.00289606]
[1646560251479,0.71309022,38871.0,38870.0,0.00289606]
[1646560251679,0.3918117,38871.0,38870.0,0.00289606]
[1646560252925,0.71309022,38871.0,38870.0,0.00289606]
[1646560253326,0.78300022,38871.0,38870.0,0.00289606]
[1646560254026,0.9,38870.0,38867.0,0.002]
[1646560254229,0.91379814,38869.0,38867.0,0.002]
[1646560254425,0.32127852,38868.0,38867.0,0.002]
[1646560254628,0.42127852,38868.0,38866.0,0.001]
[1646560254827,0.61476002,38867.0,38866.0,0.001]
[1646560255226,0.84356946,38867.0,38859.0,0.002]
[1646560255426,0.228809,38866.0,38859.0,0.002]
[1646560255627,0.29089393,38865.0,38859.0,0.002]
[1646560255875,0.29089393,38865.0,38864.0,0.00217261]
[1646560256773,0.29089393,38865.0,38864.0,0.002]
[1646560256973,0.29089393,38865.0,38845.0,0.104]
[1646560256974,1.2,38864.0,38845.0,0.104]
[1646560257181,1.2,38864.0,38773.0,1.37689526]
[1646560257182,0.3025,38847.0,38812.0,0.54133065]
[1646560257379,0.3025,38847.0,38816.0,0.5]
[1646560257380,0.1525,38826.0,38816.0,0.5]
[1646560257577,0.1525,38826.0,38802.0,0.42133218]
[1646560257578,0.07494806,38822.0,38804.0,0.26338239]
[1646560257777,0.01394452,38820.0,38801.0,0.00038562]
[1646560257978,0.25491619,38819.0,38801.0,0.00038562]
[1646560258179,0.01322713,38815.0,38801.0,0.00038562]
[1646560258376,0.06475511,38811.0,38800.0,0.006685]
[1646560258677,0.00025811,38807.0,38800.0,0.006685]
[1646560258878,0.00025811,38807.0,38792.0,0.17341291]
[1646560258879,0.00025811,38803.0,38792.0,0.17341291]
[1646560259075,0.05736,38803.0,38787.0,0.15]
[1646560259276,0.12324065,38798.0,38787.0,0.145]
[1646560259535,0.12324065,38798.0,38785.0,0.1]
[1646560259536,0.01640145,38793.0,38785.0,0.1]
[1646560259739,0.25187651,38792.0,38785.0,0.1]
[1646560260036,0.00025819,38788.0,38785.0,0.1]
[1646560260237,0.00025819,38786.0,38785.0,0.1]
[1646560260634,0.09100419,38787.0,38785.0,0.29108614]
[1646560260836,0.09100419,38787.0,38779.0,0.0011]
[1646560260837,0.00025837,38786.0,38779.0,0.0011]
[1646560261035,0.22003219,38787.0,38779.0,0.0011]
[1646560261236,0.32003219,38787.0,38779.0,0.0011]
[1646560261637,0.72003219,38787.0,38784.0,0.30838098]
[1646560261836,0.72003219,38787.0,38785.0,0.145]
[1646560262034,0.72003219,38787.0,38784.0,0.16338098]
[1646560262035,0.00025819,38786.0,38784.0,0.16338098]
[1646560262234,0.72003219,38787.0,38786.0,0.15826147]
[1646560262439,0.72029039,38787.0,38784.0,0.16338098]
[1646560262636,0.00025818,38785.0,38779.0,0.0011]
[1646560262834,0.064512,38785.0,38779.0,0.0011]
[1646560263036,0.064512,38785.0,38784.0,0.00021093]
[1646560263274,0.064512,38785.0,38779.0,0.0011]
[1646560263275,0.06429143,38785.0,38779.0,0.0011]
[1646560263475,0.06403323,38785.0,38782.0,0.20294492]
[1646560263674,0.06403323,38785.0,38783.0,0.18433214]
[1646560263875,0.26989172,38784.0,38783.0,0.18433214]
[1646560264075,0.26989172,38784.0,38783.0,0.13259126]
[1646560264679,0.76989172,38784.0,38783.0,0.13259126]
[1646560265482,0.76963353,38784.0,38783.0,0.13259126]
[1646560265880,0.26963353,38784.0,38783.0,0.13259126]
[1646560266679,0.003,38790.0,38784.0,1.545745]
[1646560266882,0.003,38790.0,38789.0,0.497451]
[1646560267142,0.00384,38799.0,38790.0,1.4]
[1646560267340,0.35905645,38802.0,38798.0,0.145]
[1646560267341,0.25703881,38802.0,38798.0,0.145]
[1646560267541,0.53967152,38813.0,38800.0,0.145]
[1646560267742,0.53967152,38813.0,38800.0,0.01815343]
[1646560267743,0.1998,38813.0,38800.0,0.01815343]
[1646560267939,0.064471,38810.0,38799.0,0.18263241]
[1646560268139,0.003,38806.0,38800.0,0.02552]
[1646560268339,0.003,38806.0,38793.0,0.01815343]
[1646560268340,0.06747837,38806.0,38793.0,0.01815343]
[1646560268642,0.06747837,38806.0,38793.0,0.01315343]
[1646560268840,0.064479,38805.0,38793.0,0.01315343]
[1646560269040,0.128958,38805.0,38793.0,0.01315343]
[1646560269248,0.128958,38805.0,38791.0,0.29732207]
[1646560269249,0.13684657,38804.0,38792.0,0.02552]
[1646560269444,0.13684657,38800.0,38791.0,0.19732207]
[1646560269644,0.13684657,38800.0,38785.0,0.56399247]
[1646560269645,0.01275193,38797.0,38785.0,0.56399247]
[1646560269845,0.064515,38790.0,38785.0,0.56399247]
[1646560270146,0.101765,38790.0,38785.0,0.56399247]
[1646560270345,0.05,38789.0,38785.0,0.56399247]
[1646560270773,0.13684657,38788.0,38785.0,0.56399247]
[1646560271175,0.05,38788.0,38785.0,0.56399247]
[1646560271376,0.05,38790.0,38785.0,0.56399247]
[1646560271574,0.15,38794.0,38785.0,0.56399247]
[1646560271973,0.21450663,38794.0,38785.0,0.56399247]
[1646560272378,0.17901363,38794.0,38785.0,0.56399247]
[1646560272577,0.13684657,38792.0,38785.0,0.56399247]
[1646560272776,0.30000657,38792.0,38785.0,0.56399247]
[1646560272984,0.30000657,38792.0,38782.0,0.00104947]
[1646560272985,0.13684657,38786.0,38782.0,0.00104947]
[1646560273179,0.02552,38789.0,38782.0,0.00034689]
[1646560273180,0.13684657,38783.0,38782.0,0.00034689]
[1646560273375,0.65940675,38783.0,38782.0,0.00034689]
[1646560273577,0.92552,38782.0,38779.0,0.0011]
[1646560273776,0.13684657,38780.0,38779.0,0.0011]
[1646560273980,0.05,38780.0,38779.0,0.0011]
[1646560274177,0.1,38782.0,38779.0,0.0011]
[1646560274383,0.02838,38780.0,38779.0,0.0011]
[1646560274836,0.16522657,38780.0,38779.0,0.0011]
[1646560275034,0.16522657,38780.0,38771.0,0.17150246]
[1646560275035,0.16522657,38780.0,38772.0,0.33429418]
[1646560275335,0.27975857,38780.0,38767.0,0.20087721]
[1646560275540,0.27975857,38780.0,38768.0,0.34221778]
[1646560275736,0.142912,38780.0,38768.0,0.34221778]
[1646560275937,0.142912,38780.0,38773.0,0.15595753]
[1646560276136,0.064535,38778.0,38773.0,0.15595753]
[1646560276337,0.142912,38780.0,38773.0,0.15595753]
[1646560276338,0.05,38780.0,38774.0,0.34221778]
[1646560276538,0.00697,38784.0,38774.0,0.02552]
[1646560276539,0.004,38784.0,38774.0,0.02552]
[1646560276740,0.004,38784.0,38774.0,0.34221778]
[1646560277135,0.004,38784.0,38771.0,0.01315343]
[1646560277339,0.004,38784.0,38765.0,0.02552]
[1646560277340,0.064531,38779.0,38765.0,0.02552]
[1646560277537,0.064531,38779.0,38777.0,0.00020157]
[1646560278374,0.064531,38779.0,38772.0,0.17291766]
[1646560278574,0.18684657,38780.0,38772.0,0.17291766]
[1646560279374,0.18684657,38780.0,38769.0,0.07236229]
[1646560279673,0.18684657,38780.0,38762.0,0.03867343]
[1646560279874,0.34221778,38779.0,38762.0,0.03867343]
[1646560280273,0.1,38778.0,38762.0,0.03867343]
[1646560280474,0.15,38778.0,38764.0,0.06005195]
[1646560280676,0.15,38778.0,38765.0,0.02552]
[1646560280873,0.15,38778.0,38764.0,0.06005195]
[1646560281373,0.69359435,38780.0,38764.0,0.06005195]
[1646560281580,0.07511,38778.0,38760.0,0.21320262]
[1646560281782,0.07511,38778.0,38759.0,0.001]
[1646560281783,0.13684657,38773.0,38759.0,0.001]
[1646560282070,0.13684657,38769.0,38759.0,0.001]
[1646560282266,0.47376435,38768.0,38764.0,0.00020686]
[1646560282465,0.6447,38767.0,38759.0,0.00020686]
[1646560282668,0.34221778,38766.0,38759.0,0.00020686]
[1646560282866,0.20464351,38765.0,38759.0,6.86e-06]
[1646560283065,0.16017657,38762.0,38759.0,6.86e-06]
[1646560283271,0.08863,38762.0,38759.0,6.86e-06]
[1646560283471,0.27154657,38760.0,38757.0,0.00010686]
[1646560283671,0.27154657,38760.0,38739.0,0.00069326]
[1646560283672,0.27154657,38758.0,38739.0,0.00069326]
[1646560283887,0.27154657,38758.0,38713.0,0.02552]
[1646560283888,0.04,38730.0,38713.0,0.02552]
[1646560284073,0.04,38730.0,38700.0,0.44]
[1646560284074,0.02458,38711.0,38700.0,0.44]
[1646560284270,0.09234,38711.0,38710.0,0.19297033]
[1646560284468,0.09234,38711.0,38700.0,0.45371343]
[1646560284469,0.13935,38711.0,38700.0,0.45371343]
[1646560284768,0.13935,38711.0,38688.0,0.05828393]
[1646560284769,0.15,38701.0,38680.0,0.00546328]
[1646560284971,0.15,38701.0,38683.0,1.45162243]
[1646560284972,0.55,38684.0,38683.0,1.45162243]
[1646560285169,0.3309384,38691.0,38687.0,0.43749402]
[1646560285370,0.15,38688.0,38687.0,0.37749402]
[1646560285569,0.4898989,38688.0,38687.0,0.35629402]
[1646560285792,0.4898989,38688.0,38680.0,0.00546328]
[1646560285793,0.449,38684.0,38680.0,0.00546328]
[1646560285987,0.09064,38688.0,38683.0,0.35]
[1646560286186,0.09064,38688.0,38682.0,0.235]
[1646560286187,0.15,38687.0,38682.0,0.235]
[1646560286390,0.15025922,38683.0,38654.0,0.1999]
[1646560286585,0.4928,38687.0,38654.0,0.1999]
[1646560286586,0.00025922,38680.0,38660.0,0.34221778]
[1646560286789,0.13887922,38680.0,38664.0,0.05510196]
[1646560286985,0.13887922,38680.0,38648.0,1.93328156]
[1646560286986,0.13887921,38678.0,38648.0,1.93328156]
[1646560287188,0.13887921,38678.0,38672.0,0.00378215]
[1646560287189,0.54247699,38678.0,38672.0,0.00378215]
[1646560287388,0.54247699,38678.0,38648.0,1.93328156]
[1646560287389,0.05,38678.0,38670.0,0.14378215]
[1646560287584,0.05,38678.0,38648.0,1.93328156]
[1646560287585,0.05,38678.0,38671.0,0.34221778]
[1646560287785,0.04046759,38704.0,38673.0,1.2]
[1646560287786,0.02394928,38693.0,38673.0,1.2]
[1646560288090,0.01052616,38696.0,38681.0,0.19594146]
[1646560288091,0.13411785,38683.0,38681.0,0.19594146]
[1646560288293,0.35518545,38694.0,38682.0,0.1559841]
[1646560288294,0.002912,38693.0,38682.0,0.1559841]
[1646560288489,0.17043493,38706.0,38683.0,1.92602278]
[1646560288688,0.00902227,38710.0,38683.0,0.34221778]
[1646560288888,0.6803,38721.0,38672.0,1.50548319]
[1646560288889,0.16958578,38714.0,38698.0,0.01988215]
[1646560289091,0.34221778,38713.0,38685.0,0.06754155]
[1646560289290,0.34221778,38713.0,38672.0,1.50548319]
[1646560289291,0.05230766,38691.0,38683.0,0.01988215]
[1646560289551,0.05230766,38691.0,38683.0,0.00161949]
[1646560289748,0.05230766,38691.0,38684.0,0.1]
[1646560290149,0.05230766,38691.0,38684.0,0.095]
[1646560290352,0.05230766,38691.0,38689.0,0.01988215]
[1646560290748,0.05230766,38691.0,38690.0,0.20603389]
[1646560290951,0.05230766,38691.0,38685.0,0.20224672]
[1646560290952,0.04828475,38691.0,38685.0,0.19903987]
[1646560291349,0.04828475,38691.0,38685.0,0.19612887]
[1646560291556,0.16958578,38706.0,38685.0,0.19612887]
[1646560291557,0.16958578,38706.0,38690.0,1.0]
[1646560291752,0.34221778,38714.0,38705.0,0.20824218]
[1646560291753,0.16958578,38714.0,38705.0,0.20824218]
[1646560291950,0.56833216,38720.0,38705.0,0.20824218]
[1646560291951,0.5,38713.0,38705.0,0.20824218]
[1646560292149,0.16958578,38720.0,38705.0,0.20824218]
[1646560292150,0.001,38709.0,38705.0,0.20824218]
[1646560292950,0.001,38709.0,38706.0,0.16293443]
[1646560293148,0.00121578,38709.0,38703.0,0.34221778]
[1646560293583,0.00438,38724.0,38704.0,2.2]
[1646560293783,0.00432,38724.0,38708.0,0.1]
[1646560293979,0.15,38727.0,38708.0,0.1]
[1646560294179,0.53380356,38730.0,38709.0,0.31269098]
[1646560294180,0.17021652,38726.0,38709.0,0.31269098]
[1646560294379,0.15,38728.0,38709.0,0.31269098]
[1646560294580,0.15432,38729.0,38710.0,0.55754675]
[1646560294882,0.02942356,38730.0,38716.0,0.27161938]
[1646560294883,0.34607454,38730.0,38716.0,0.27161938]
[1646560295079,0.03338356,38730.0,38726.0,0.18093634]
[1646560295280,0.15002803,38724.0,38718.0,0.01883653]
[1646560296879,0.00021576,38723.0,38716.0,0.1525474]
[1646560297174,0.00021576,38723.0,38719.0,0.19280283]
[1646560297374,0.00021576,38723.0,38709.0,1.0]
[1646560297574,0.0231423,38724.0,38710.0,0.0129]
[1646560298080,0.0231423,38724.0,38704.0,0.003]
[1646560298081,0.15,38718.0,38704.0,0.003]
[1646560298277,0.30991922,38717.0,38704.0,0.003]
[1646560298474,0.05,38718.0,38704.0,0.003]
[1646560298475,0.1473,38715.0,38704.0,0.003]
[1646560298678,0.35991922,38717.0,38704.0,0.003]
[1646560298877,0.1473,38709.0,38704.0,0.003]
[1646560299078,0.1473,38705.0,38704.0,0.003]
[1646560299279,0.14755871,38705.0,38704.0,0.003]
[1646560299478,0.19755871,38705.0,38686.0,0.21111639]
[1646560299779,0.03926,38706.0,38691.0,0.0027]
[1646560299977,0.1473,38708.0,38684.0,0.21430286]
[1646560300177,0.45721922,38707.0,38682.0,0.001]
[1646560300377,0.50721922,38707.0,38682.0,0.001]
[1646560300578,0.1473,38705.0,38682.0,0.001]
[1646560300779,0.30991922,38704.0,38682.0,0.001]
[1646560300985,0.1473,38693.0,38682.0,0.001]
[1646560301185,0.14151,38692.0,38682.0,0.001]
[1646560301383,0.14151,38692.0,38680.0,0.16279206]
[1646560301580,0.14151,38692.0,38685.0,0.00018764]
[1646560301982,0.1159,38693.0,38685.0,0.00018764]
[1646560301983,0.0659,38693.0,38685.0,0.00018764]
[1646560302284,0.004,38693.0,38685.0,0.00018764]
[1646560302482,0.004,38693.0,38691.0,0.19138391]
[1646560303086,0.004,38693.0,38692.0,0.69372422]
[1646560303285,0.64151,38708.0,38693.0,1.2]
[1646560303286,0.5,38708.0,38693.0,1.2]
[1646560303485,0.5,38708.0,38705.0,0.19201273]
[1646560303687,0.5,38708.0,38706.0,0.69372422]
[1646560303884,0.0039,38712.0,38707.0,0.30991922]
[1646560304084,0.005,38712.0,38707.0,0.30991922]
[1646560304283,0.005,38712.0,38707.0,0.33543922]
[1646560304726,0.005,38712.0,38707.0,0.02552]
[1646560305129,0.005,38712.0,38709.0,0.383805]
[1646560305328,0.005,38712.0,38710.0,0.383805]
[1646560305528,0.0272823,38724.0,38719.0,0.17781105]
[1646560305529,0.0231423,38724.0,38719.0,0.17781105]
[1646560305729,0.0231423,38724.0,38707.0,0.383805]
[1646560305730,0.11626666,38712.0,38707.0,0.383805]
[1646560306128,0.0231423,38724.0,38708.0,2.2]
[1646560306333,0.0231423,38724.0,38712.0,0.383805]
[1646560306530,0.0231423,38724.0,38714.0,0.383805]
[1646560306728,0.0231423,38724.0,38723.0,0.2105272]
[1646560306929,0.14151,38738.0,38724.0,1.05]
[1646560307128,0.14151,38738.0,38727.0,0.16113906]
[1646560307328,0.14151,38738.0,38729.0,0.1584429]
[1646560307528,0.14151,38738.0,38729.0,0.46836212]
[1646560307729,0.14151,38738.0,38725.0,0.30991922]
[1646560307933,0.25314,38746.0,38724.0,0.30991922]
[1646560308129,0.14151,38734.0,38718.0,0.30991922]
[1646560308383,0.14151,38737.0,38719.0,0.396705]
[1646560308576,0.14151,38737.0,38720.0,0.30866726]
[1646560308777,0.14151,38737.0,38728.0,0.16009446]
[1646560308981,0.14151,38737.0,38729.0,0.30866726]
[1646560309376,0.14151,38737.0,38728.0,0.16009446]
[1646560309579,0.14151,38737.0,38729.0,0.30866726]
[1646560311380,0.0002158,38731.0,38729.0,0.30866726]
[1646560312230,0.14541,38746.0,38729.0,0.75517224]
[1646560312431,0.14541,38746.0,38729.0,1.37136724]
[1646560312432,0.00014165,38731.0,38729.0,1.37136724]
[1646560312629,0.00014165,38731.0,38730.0,0.30742124]
[1646560312832,0.00014165,38731.0,38730.0,0.32032124]
[1646560313329,6.309e-05,38755.0,38730.0,0.49577328]
[1646560313330,0.14151,38741.0,38730.0,0.49577328]
[1646560313530,0.249,38750.0,38738.0,0.15528395]
[1646560313728,0.14151,38741.0,38739.0,0.30742124]
[1646560313929,0.00025849,38740.0,38737.0,0.30742124]
[1646560314135,6.309e-05,38755.0,38737.0,0.30742124]
[1646560314332,0.14151,38743.0,38737.0,0.30742124]
[1646560314533,6.309e-05,38755.0,38737.0,0.30742124]
[1646560314734,0.14151,38747.0,38737.0,0.30742124]
[1646560314931,0.14151,38747.0,38742.0,0.18777031]
[1646560315133,0.14151,38747.0,38743.0,0.30742124]
[1646560315334,0.00402309,38755.0,38745.0,0.02552]
[1646560315335,6.309e-05,38755.0,38745.0,0.02552]
[1646560315533,6.309e-05,38755.0,38747.0,0.02552]
[1646560315788,0.26577484,38770.0,38747.0,0.02552]
[1646560315789,0.43405433,38765.0,38758.0,0.02552]